[Event "Early-Titled-Tuesday-Blitz-September-12-2023"]
[Site "Chess.com"]
[Date "2023.09.12"]
[Round "1"]
[White "baki83"]
[Black "Rosh1610"]
[Result "1-0"]
[WhiteElo "2805"]
[BlackElo "2456"]
[TimeControl "180+1"]
[EndTime "8:08:05 PDT"]
[Termination "baki83 won by checkmate"]

1. e4 {[%clk 0:02:04.6]} 1... c5 {[%clk 0:02:57.6]} 2. Nf3 {[%clk 0:02:03.1]}
2... d6 {[%clk 0:02:51]} 3. Bb5+ {[%clk 0:02:02.4]} 3... Nd7 {[%clk 0:02:50.7]}
4. d4 {[%clk 0:02:02.4]} 4... cxd4 {[%clk 0:02:50.5]} 5. Qxd4 {[%clk 0:02:03.1]}
5... Nf6 {[%clk 0:02:44.6]} 6. O-O {[%clk 0:01:59.9]} 6... a6 {[%clk 0:02:43.3]}
7. Be2 {[%clk 0:01:59.1]} 7... g6 {[%clk 0:02:42.6]} 8. Rd1 {[%clk 0:01:52.1]}
8... Bg7 {[%clk 0:02:42.6]} 9. Nc3 {[%clk 0:01:44]} 9... O-O {[%clk 0:02:42.1]}
10. e5 {[%clk 0:01:44.1]} 10... dxe5 {[%clk 0:02:41.7]} 11. Nxe5 {[%clk
0:01:44.1]} 11... Ne8 {[%clk 0:02:01.2]} 12. Bf4 {[%clk 0:01:22]} 12... Nd6
{[%clk 0:01:59.9]} 13. Qd5 {[%clk 0:00:57.5]} 13... Nxe5 {[%clk 0:01:52.3]} 14.
Bxe5 {[%clk 0:00:57.8]} 14... Be6 {[%clk 0:01:52.1]} 15. Qd4 {[%clk 0:00:56.9]}
15... Nf5 {[%clk 0:01:49]} 16. Qxd8 {[%clk 0:00:55.2]} 16... Rfxd8 {[%clk
0:01:49.9]} 17. Bxg7 {[%clk 0:00:55.3]} 17... Kxg7 {[%clk 0:01:48.8]} 18. Bf3
{[%clk 0:00:54.9]} 18... Nd6 {[%clk 0:01:36.6]} 19. Ne2 {[%clk 0:00:44]} 19...
Rac8 {[%clk 0:01:32.2]} 20. c3 {[%clk 0:00:39.4]} 20... b5 {[%clk 0:01:30.5]}
21. Nf4 {[%clk 0:00:34.6]} 21... Bf5 {[%clk 0:01:26.3]} 22. Nd5 {[%clk
0:00:29.6]} 22... e6 {[%clk 0:01:19.4]} 23. Ne7 {[%clk 0:00:19.5]} 23... Rc7
{[%clk 0:01:13.1]} 24. Nc6 {[%clk 0:00:17.2]} 24... Rdd7 {[%clk 0:01:12.1]} 25.
Nb8 {[%clk 0:00:16.1]} 25... Rd8 {[%clk 0:01:10.8]} 26. Nxa6 {[%clk 0:00:16.1]}
26... Rcc8 {[%clk 0:01:07.1]} 27. Nb4 {[%clk 0:00:14.8]} 27... Be4 {[%clk
0:01:06.9]} 28. Bxe4 {[%clk 0:00:14.2]} 28... Nxe4 {[%clk 0:01:07.8]} 29. Kf1
{[%clk 0:00:14.5]} 29... Nd2+ {[%clk 0:01:06.6]} 30. Ke2 {[%clk 0:00:14.7]}
30... Nc4 {[%clk 0:01:06.3]} 31. b3 {[%clk 0:00:14.8]} 31... Ne5 {[%clk
0:01:05.2]} 32. Rxd8 {[%clk 0:00:14.7]} 32... Rxd8 {[%clk 0:01:05.1]} 33. Rc1
{[%clk 0:00:15.1]} 33... Rc8 {[%clk 0:01:04.2]} 34. Rc2 {[%clk 0:00:15.1]} 34...
f5 {[%clk 0:01:03.7]} 35. Nd3 {[%clk 0:00:15.1]} 35... Nd7 {[%clk 0:01:03.3]}
36. c4 {[%clk 0:00:14.7]} 36... bxc4 {[%clk 0:01:03.1]} 37. Rxc4 {[%clk
0:00:14.5]} 37... Rxc4 {[%clk 0:00:56]} 38. bxc4 {[%clk 0:00:14.5]} 38... Kf7
{[%clk 0:00:56.6]} 39. f4 {[%clk 0:00:14.2]} 39... Ke7 {[%clk 0:00:57.1]} 40.
Ke3 {[%clk 0:00:14.7]} 40... Kd6 {[%clk 0:00:57.4]} 41. Kd4 {[%clk 0:00:15.3]}
41... Nb8 {[%clk 0:00:57.8]} 42. Ne5 {[%clk 0:00:13.3]} 42... Na6 {[%clk
0:00:57]} 43. a3 {[%clk 0:00:13.4]} 43... Nc5 {[%clk 0:00:57]} 44. Nf7+ {[%clk
0:00:13.6]} 44... Kc6 {[%clk 0:00:57.3]} 45. Ng5 {[%clk 0:00:13.6]} 45... Nb3+
{[%clk 0:00:50.3]} 46. Kc3 {[%clk 0:00:13.1]} 46... Nc5 {[%clk 0:00:49.5]} 47.
Nxh7 {[%clk 0:00:13.1]} 47... Ne4+ {[%clk 0:00:49.4]} 48. Kd4 {[%clk 0:00:13.3]}
48... Kd6 {[%clk 0:00:48.3]} 49. Nf8 {[%clk 0:00:10.3]} 49... g5 {[%clk
0:00:48.3]} 50. fxg5 {[%clk 0:00:09.6]} 50... Nxg5 {[%clk 0:00:49.2]} 51. Ng6
{[%clk 0:00:09.1]} 51... Nf7 {[%clk 0:00:47]} 52. c5+ {[%clk 0:00:08.9]} 52...
Kc7 {[%clk 0:00:47.2]} 53. h4 {[%clk 0:00:08.9]} 53... Nh6 {[%clk 0:00:46.3]}
54. Ne5 {[%clk 0:00:08.7]} 54... Ng8 {[%clk 0:00:43.9]} 55. h5 {[%clk
0:00:08.7]} 55... Nf6 {[%clk 0:00:44.2]} 56. h6 {[%clk 0:00:09.1]} 56... Nh7
{[%clk 0:00:45.1]} 57. c6 {[%clk 0:00:08.9]} 57... Nf6 {[%clk 0:00:45.1]} 58. a4
{[%clk 0:00:09.1]} 58... Kb6 {[%clk 0:00:44.2]} 59. a5+ {[%clk 0:00:08.7]} 59...
Kc7 {[%clk 0:00:44.8]} 60. Kc5 {[%clk 0:00:07.5]} 60... Ne4+ {[%clk 0:00:44.4]}
61. Kb5 {[%clk 0:00:07.5]} 61... Nc3+ {[%clk 0:00:44.5]} 62. Kc4 {[%clk
0:00:07.6]} 62... Ne4 {[%clk 0:00:43.7]} 63. h7 {[%clk 0:00:07.8]} 63... Nf6
{[%clk 0:00:41.2]} 64. h8=Q {[%clk 0:00:07.6]} 64... f4 {[%clk 0:00:42.1]} 65.
Qxf6 {[%clk 0:00:07.3]} 65... f3 {[%clk 0:00:43]} 66. Qe7+ {[%clk 0:00:07.8]}
66... Kc8 {[%clk 0:00:42.7]} 67. Qd7+ {[%clk 0:00:08.3]} 67... Kb8 {[%clk
0:00:42.9]} 68. Qb7# {[%clk 0:00:09.2]} 1-0

[Event "Early-Titled-Tuesday-Blitz-September-12-2023"]
[Site "Chess.com"]
[Date "2023.09.12"]
[Round "1"]
[White "crazy_but_lazy"]
[Black "LuisFSiles"]
[Result "0-1"]
[WhiteElo "2635"]
[BlackElo "2362"]
[TimeControl "180+1"]
[EndTime "8:08:08 PDT"]
[Termination "LuisFSiles won by checkmate"]

1. c4 {[%clk 0:02:55]} 1... Nf6 {[%clk 0:02:57.5]} 2. Nc3 {[%clk 0:02:55.4]}
2... g6 {[%clk 0:02:57.7]} 3. d4 {[%clk 0:02:53.5]} 3... d6 {[%clk 0:02:57.8]}
4. e4 {[%clk 0:02:53.9]} 4... Bg7 {[%clk 0:02:57.9]} 5. Be2 {[%clk 0:02:54.2]}
5... O-O {[%clk 0:02:57.8]} 6. Be3 {[%clk 0:02:53.6]} 6... Nbd7 {[%clk
0:02:55.4]} 7. h4 {[%clk 0:02:43.9]} 7... e5 {[%clk 0:02:43.3]} 8. d5 {[%clk
0:02:44]} 8... Nc5 {[%clk 0:02:43.2]} 9. f3 {[%clk 0:02:41]} 9... Nh5 {[%clk
0:02:40.1]} 10. g4 {[%clk 0:02:39.1]} 10... Nf4 {[%clk 0:02:37.2]} 11. Qd2
{[%clk 0:02:32]} 11... f5 {[%clk 0:02:35.7]} 12. gxf5 {[%clk 0:02:27.9]} 12...
gxf5 {[%clk 0:02:35.1]} 13. O-O-O {[%clk 0:02:23.3]} 13... Kh8 {[%clk
0:02:18.3]} 14. b4 {[%clk 0:02:01.7]} 14... Na6 {[%clk 0:02:11.7]} 15. a3 {[%clk
0:02:00.5]} 15... Rf6 {[%clk 0:01:28.9]} 16. Nh3 {[%clk 0:01:30.7]} 16... Nxh3
{[%clk 0:01:17]} 17. Rxh3 {[%clk 0:01:30.4]} 17... f4 {[%clk 0:01:17.1]} 18. Rh2
{[%clk 0:01:19.5]} 18... fxe3 {[%clk 0:01:13.7]} 19. Qc2 {[%clk 0:01:15.3]}
19... Bd7 {[%clk 0:01:05.7]} 20. Kb2 {[%clk 0:01:09.3]} 20... c5 {[%clk
0:01:00.2]} 21. dxc6 {[%clk 0:01:09]} 21... bxc6 {[%clk 0:00:58.9]} 22. c5
{[%clk 0:01:08.9]} 22... Nc7 {[%clk 0:00:42.2]} 23. cxd6 {[%clk 0:01:04.8]}
23... Ne6 {[%clk 0:00:42.2]} 24. Bc4 {[%clk 0:00:52.3]} 24... Nd4 {[%clk
0:00:41.5]} 25. Qd3 {[%clk 0:00:50.5]} 25... Rxf3 {[%clk 0:00:40.6]} 26. Ne2
{[%clk 0:00:50.7]} 26... Rf2 {[%clk 0:00:39.1]} 27. Rxf2 {[%clk 0:00:48.8]}
27... exf2 {[%clk 0:00:40]} 28. Rf1 {[%clk 0:00:37.7]} 28... Qxh4 {[%clk
0:00:39]} 29. Ng3 {[%clk 0:00:23.4]} 29... Rf8 {[%clk 0:00:36.8]} 30. Nf5 {[%clk
0:00:20.1]} 30... Bxf5 {[%clk 0:00:32.1]} 31. exf5 {[%clk 0:00:19.8]} 31... e4
{[%clk 0:00:31.3]} 32. Qd1 {[%clk 0:00:20.3]} 32... e3 {[%clk 0:00:28.6]} 33.
Ka2 {[%clk 0:00:18.7]} 33... e2 {[%clk 0:00:28.1]} 34. Bxe2 {[%clk 0:00:19.2]}
34... Nxe2 {[%clk 0:00:25.8]} 35. Qxe2 {[%clk 0:00:20.1]} 35... Qd4 {[%clk
0:00:24.9]} 36. Qxf2 {[%clk 0:00:17.2]} 36... Qd5+ {[%clk 0:00:23.5]} 37. Kb1
{[%clk 0:00:17]} 37... Qxd6 {[%clk 0:00:22.2]} 38. Qc2 {[%clk 0:00:15.8]} 38...
Bf6 {[%clk 0:00:21.2]} 39. Rh1 {[%clk 0:00:15.5]} 39... Qd4 {[%clk 0:00:20.7]}
40. Ka2 {[%clk 0:00:14.7]} 40... Re8 {[%clk 0:00:16]} 41. Qh2 {[%clk 0:00:12.6]}
41... Qd5+ {[%clk 0:00:14.7]} 42. Kb1 {[%clk 0:00:12.1]} 42... Qxf5+ {[%clk
0:00:13.8]} 43. Ka2 {[%clk 0:00:11.6]} 43... Rd8 {[%clk 0:00:09]} 44. Rc1 {[%clk
0:00:10.3]} 44... Qd5+ {[%clk 0:00:08.6]} 45. Kb1 {[%clk 0:00:08.9]} 45... Qe5
{[%clk 0:00:08.3]} 46. Qa2 {[%clk 0:00:08.2]} 46... Qf5+ {[%clk 0:00:07.2]} 47.
Qc2 {[%clk 0:00:07.4]} 47... Qxc2+ {[%clk 0:00:06.7]} 48. Rxc2 {[%clk
0:00:08.3]} 48... h5 {[%clk 0:00:06.5]} 49. Rxc6 {[%clk 0:00:08.4]} 49... Kg7
{[%clk 0:00:06.6]} 50. Rc7+ {[%clk 0:00:08.8]} 50... Kg6 {[%clk 0:00:06.8]} 51.
Rxa7 {[%clk 0:00:09.7]} 51... h4 {[%clk 0:00:07.2]} 52. Rc7 {[%clk 0:00:09.1]}
52... h3 {[%clk 0:00:06.9]} 53. Rc3 {[%clk 0:00:08.3]} 53... Bxc3 {[%clk
0:00:06.4]} 54. Kc2 {[%clk 0:00:08.1]} 54... Bf6 {[%clk 0:00:05.4]} 55. a4
{[%clk 0:00:08.2]} 55... h2 {[%clk 0:00:05.9]} 56. Kb3 {[%clk 0:00:09.1]} 56...
h1=Q {[%clk 0:00:06]} 57. Kc4 {[%clk 0:00:10]} 57... Qc1+ {[%clk 0:00:05.8]} 58.
Kb5 {[%clk 0:00:10.4]} 58... Rb8+ {[%clk 0:00:06]} 59. Ka6 {[%clk 0:00:10.8]}
59... Qc8+ {[%clk 0:00:06]} 60. Ka5 {[%clk 0:00:11.6]} 60... Qc7+ {[%clk
0:00:05.4]} 61. Ka6 {[%clk 0:00:11.9]} 61... Qb7+ {[%clk 0:00:05.7]} 62. Ka5
{[%clk 0:00:12]} 62... Qa7# {[%clk 0:00:06.1]} 0-1

[Event "Early-Titled-Tuesday-Blitz-September-12-2023"]
[Site "Chess.com"]
[Date "2023.09.12"]
[Round "1"]
[White "IwkooO"]
[Black "MarijaKuznecova"]
[Result "0-1"]
[WhiteElo "2652"]
[BlackElo "2389"]
[TimeControl "180+1"]
[EndTime "8:08:09 PDT"]
[Termination "MarijaKuznecova won by checkmate"]

1. e4 {[%clk 0:03:00.9]} 1... c5 {[%clk 0:02:59.2]} 2. Nf3 {[%clk 0:02:57.6]}
2... d6 {[%clk 0:02:58.9]} 3. Bb5+ {[%clk 0:02:58.1]} 3... Bd7 {[%clk
0:02:56.7]} 4. a4 {[%clk 0:02:57.5]} 4... g6 {[%clk 0:02:54.8]} 5. O-O {[%clk
0:02:57.2]} 5... Bg7 {[%clk 0:02:54.8]} 6. Re1 {[%clk 0:02:56.6]} 6... e5 {[%clk
0:02:50.6]} 7. c3 {[%clk 0:02:55.1]} 7... Nc6 {[%clk 0:02:45.5]} 8. d3 {[%clk
0:02:45.1]} 8... Nge7 {[%clk 0:02:44.5]} 9. Nbd2 {[%clk 0:02:45.3]} 9... a6
{[%clk 0:02:40.9]} 10. Bc4 {[%clk 0:02:45.4]} 10... O-O {[%clk 0:02:39.8]} 11.
Nf1 {[%clk 0:02:45.9]} 11... Kh8 {[%clk 0:02:29.7]} 12. Ne3 {[%clk 0:02:42.6]}
12... Qe8 {[%clk 0:02:24.2]} 13. Nd5 {[%clk 0:02:29.9]} 13... Nxd5 {[%clk
0:02:06.2]} 14. Bxd5 {[%clk 0:02:30.8]} 14... f5 {[%clk 0:02:03]} 15. d4 {[%clk
0:02:25.8]} 15... f4 {[%clk 0:01:40.7]} 16. dxe5 {[%clk 0:02:18.7]} 16... dxe5
{[%clk 0:01:39.6]} 17. h3 {[%clk 0:02:18.5]} 17... h6 {[%clk 0:01:38.2]} 18. Qb3
{[%clk 0:02:16]} 18... Rb8 {[%clk 0:01:30.2]} 19. Qc4 {[%clk 0:02:11.9]} 19...
Qe7 {[%clk 0:01:26.2]} 20. b3 {[%clk 0:02:11.7]} 20... g5 {[%clk 0:00:58.4]} 21.
Ba3 {[%clk 0:02:11]} 21... b6 {[%clk 0:00:58.1]} 22. Qxa6 {[%clk 0:02:07]} 22...
h5 {[%clk 0:00:54.2]} 23. h4 {[%clk 0:01:38.7]} 23... g4 {[%clk 0:00:34.5]} 24.
Ng5 {[%clk 0:01:38.4]} 24... Bh6 {[%clk 0:00:29.8]} 25. Bc1 {[%clk 0:00:22.4]}
25... Bxg5 {[%clk 0:00:25.1]} 26. hxg5 {[%clk 0:00:23.3]} 26... Qxg5 {[%clk
0:00:24.5]} 27. Qd3 {[%clk 0:00:23.9]} 27... Rbd8 {[%clk 0:00:20.5]} 28. Bd2
{[%clk 0:00:22.5]} 28... h4 {[%clk 0:00:20.3]} 29. Rad1 {[%clk 0:00:22.6]} 29...
g3 {[%clk 0:00:18.9]} 30. Qe2 {[%clk 0:00:11.8]} 30... h3 {[%clk 0:00:13.6]} 31.
fxg3 {[%clk 0:00:12.1]} 31... Qxg3 {[%clk 0:00:13.4]} 32. Qf3 {[%clk 0:00:12]}
32... Qxf3 {[%clk 0:00:09.3]} 33. gxf3 {[%clk 0:00:12.4]} 33... Ne7 {[%clk
0:00:08.6]} 34. Kf2 {[%clk 0:00:11.7]} 34... Nxd5 {[%clk 0:00:08.3]} 35. exd5
{[%clk 0:00:12.6]} 35... Bf5 {[%clk 0:00:07.8]} 36. c4 {[%clk 0:00:13]} 36...
Rg8 {[%clk 0:00:07.9]} 37. Rg1 {[%clk 0:00:12.5]} 37... Bc2 {[%clk 0:00:07.2]}
38. Rc1 {[%clk 0:00:10.8]} 38... Bxb3 {[%clk 0:00:05.7]} 39. Bc3 {[%clk
0:00:11.5]} 39... Rxg1 {[%clk 0:00:03.7]} 40. Rxg1 {[%clk 0:00:10.3]} 40... Re8
{[%clk 0:00:03.1]} 41. Rh1 {[%clk 0:00:10.2]} 41... Bxc4 {[%clk 0:00:02.7]} 42.
Rxh3+ {[%clk 0:00:10.9]} 42... Kg7 {[%clk 0:00:02.7]} 43. d6 {[%clk 0:00:11.7]}
43... Kf6 {[%clk 0:00:01.8]} 44. Rh6+ {[%clk 0:00:11.9]} 44... Kf7 {[%clk
0:00:02.4]} 45. Rh7+ {[%clk 0:00:08.9]} 45... Ke6 {[%clk 0:00:02.4]} 46. Rh6+
{[%clk 0:00:08.2]} 46... Kd7 {[%clk 0:00:02.5]} 47. a5 {[%clk 0:00:05.1]} 47...
bxa5 {[%clk 0:00:02.9]} 48. Bxa5 {[%clk 0:00:06]} 48... Be6 {[%clk 0:00:02.7]}
49. Bc7 {[%clk 0:00:06.3]} 49... c4 {[%clk 0:00:02.2]} 50. Rh7+ {[%clk
0:00:06.8]} 50... Kc6 {[%clk 0:00:02.2]} 51. Ke1 {[%clk 0:00:07.6]} 51... c3
{[%clk 0:00:02.6]} 52. Ke2 {[%clk 0:00:07.5]} 52... c2 {[%clk 0:00:02.6]} 53.
Kd2 {[%clk 0:00:07.9]} 53... Bf5 {[%clk 0:00:03.1]} 54. Rh6 {[%clk 0:00:07.3]}
54... Ra8 {[%clk 0:00:03.3]} 55. Rf6 {[%clk 0:00:05.2]} 55... Ra1 {[%clk
0:00:03]} 56. d7+ {[%clk 0:00:04.9]} 56... Kxd7 {[%clk 0:00:03.3]} 57. Bxe5
{[%clk 0:00:05.1]} 57... c1=Q+ {[%clk 0:00:03.2]} 58. Ke2 {[%clk 0:00:06]} 58...
Qd1+ {[%clk 0:00:03.2]} 59. Kf2 {[%clk 0:00:06.6]} 59... Qf1# {[%clk 0:00:03.8]}
0-1

[Event "Early-Titled-Tuesday-Blitz-September-12-2023"]
[Site "Chess.com"]
[Date "2023.09.12"]
[Round "1"]
[White "Apocalyps999"]
[Black "temiksmozg"]
[Result "0-1"]
[WhiteElo "2321"]
[BlackElo "2631"]
[TimeControl "180+1"]
[EndTime "8:08:09 PDT"]
[Termination "temiksmozg won by checkmate"]

1. e4 {[%clk 0:03:00.9]} 1... c5 {[%clk 0:02:49]} 2. c3 {[%clk 0:03:00.2]} 2...
d5 {[%clk 0:02:47.9]} 3. exd5 {[%clk 0:02:53.6]} 3... Qxd5 {[%clk 0:02:48.8]} 4.
d4 {[%clk 0:02:54.3]} 4... Nf6 {[%clk 0:02:42.8]} 5. Nf3 {[%clk 0:02:53.3]} 5...
e6 {[%clk 0:02:41.5]} 6. Na3 {[%clk 0:02:48.7]} 6... Nc6 {[%clk 0:02:37.9]} 7.
Be3 {[%clk 0:02:48.3]} 7... cxd4 {[%clk 0:02:33.2]} 8. Nb5 {[%clk 0:02:46.9]}
8... Qd8 {[%clk 0:02:27.8]} 9. Nbxd4 {[%clk 0:02:46.3]} 9... Bd7 {[%clk
0:02:25]} 10. Bd3 {[%clk 0:02:35.6]} 10... Bd6 {[%clk 0:02:17.4]} 11. Bc2 {[%clk
0:02:34.1]} 11... O-O {[%clk 0:02:11.9]} 12. O-O {[%clk 0:02:33.7]} 12... a6
{[%clk 0:02:10.5]} 13. Nxc6 {[%clk 0:02:31.4]} 13... Bxc6 {[%clk 0:02:11.4]} 14.
Nd4 {[%clk 0:02:31.9]} 14... Bd5 {[%clk 0:02:04.7]} 15. b3 {[%clk 0:02:29.9]}
15... Qc7 {[%clk 0:02:03.8]} 16. c4 {[%clk 0:02:29.7]} 16... Bxh2+ {[%clk
0:01:36.1]} 17. Kh1 {[%clk 0:02:27.1]} 17... Be4 {[%clk 0:01:36.5]} 18. Bxe4
{[%clk 0:02:21.5]} 18... Nxe4 {[%clk 0:01:37.4]} 19. Qf3 {[%clk 0:02:21.2]}
19... Qe5 {[%clk 0:00:58.4]} 20. g3 {[%clk 0:01:48.3]} 20... Bxg3 {[%clk
0:00:55.8]} 21. fxg3 {[%clk 0:01:49.2]} 21... Nxg3+ {[%clk 0:00:56.7]} 22. Kg2
{[%clk 0:01:49.3]} 22... Nxf1 {[%clk 0:00:56.7]} 23. Rxf1 {[%clk 0:01:50.2]}
23... Rad8 {[%clk 0:00:56.7]} 24. Qf2 {[%clk 0:00:56.4]} 24... b5 {[%clk
0:00:45.9]} 25. cxb5 {[%clk 0:00:53]} 25... axb5 {[%clk 0:00:46.8]} 26. Kg1
{[%clk 0:00:45.8]} 26... Rd5 {[%clk 0:00:27.5]} 27. Rc1 {[%clk 0:00:33.1]} 27...
Rfd8 {[%clk 0:00:18.6]} 28. Rd1 {[%clk 0:00:12.5]} 28... Qe4 {[%clk 0:00:14.7]}
29. Rf1 {[%clk 0:00:12.6]} 29... f5 {[%clk 0:00:10.5]} 30. Nf3 {[%clk
0:00:10.2]} 30... Rd3 {[%clk 0:00:09.6]} 31. Bb6 {[%clk 0:00:09.8]} 31... Rc8
{[%clk 0:00:06.2]} 32. Kg2 {[%clk 0:00:08.9]} 32... Qg4+ {[%clk 0:00:06]} 33.
Qg3 {[%clk 0:00:08.5]} 33... Rc2+ {[%clk 0:00:06.4]} 34. Rf2 {[%clk 0:00:07.3]}
34... Rxf2+ {[%clk 0:00:06.4]} 35. Bxf2 {[%clk 0:00:08.2]} 35... Qxg3+ {[%clk
0:00:04.2]} 36. Kxg3 {[%clk 0:00:09.1]} 36... g5 {[%clk 0:00:04.5]} 37. Kg2
{[%clk 0:00:08.3]} 37... g4 {[%clk 0:00:04]} 38. Ne5 {[%clk 0:00:08.7]} 38...
Rd5 {[%clk 0:00:04.7]} 39. Nd7 {[%clk 0:00:08.3]} 39... Rxd7 {[%clk 0:00:04.2]}
40. Kg3 {[%clk 0:00:08.9]} 40... Rd5 {[%clk 0:00:04.8]} 41. Kf4 {[%clk
0:00:09.8]} 41... Kf7 {[%clk 0:00:05.6]} 42. Kg5 {[%clk 0:00:10.2]} 42... Rd2
{[%clk 0:00:04.6]} 43. Kh6 {[%clk 0:00:11.1]} 43... Rxa2 {[%clk 0:00:04.8]} 44.
Be3 {[%clk 0:00:12]} 44... Rh2+ {[%clk 0:00:05]} 45. Kg5 {[%clk 0:00:11.4]}
45... g3 {[%clk 0:00:05.7]} 46. Kf4 {[%clk 0:00:11]} 46... g2 {[%clk 0:00:05.4]}
47. Kg3 {[%clk 0:00:11.5]} 47... Rh1 {[%clk 0:00:05.7]} 48. Kxg2 {[%clk
0:00:12.4]} 48... Rb1 {[%clk 0:00:06.3]} 49. b4 {[%clk 0:00:12.4]} 49... Rb3
{[%clk 0:00:07.2]} 50. Bc5 {[%clk 0:00:12.9]} 50... f4 {[%clk 0:00:07.1]} 51.
Kf2 {[%clk 0:00:13.8]} 51... Kg6 {[%clk 0:00:07.7]} 52. Kg2 {[%clk 0:00:14.7]}
52... Kf5 {[%clk 0:00:08.6]} 53. Kf2 {[%clk 0:00:15.6]} 53... e5 {[%clk
0:00:09.5]} 54. Kg2 {[%clk 0:00:14.7]} 54... e4 {[%clk 0:00:10.4]} 55. Kf2
{[%clk 0:00:15.6]} 55... Kg4 {[%clk 0:00:10.8]} 56. Ke1 {[%clk 0:00:16.5]} 56...
Rb2 {[%clk 0:00:11.3]} 57. Kf1 {[%clk 0:00:17.4]} 57... h5 {[%clk 0:00:11.1]}
58. Ke1 {[%clk 0:00:18.3]} 58... h4 {[%clk 0:00:12]} 59. Kd1 {[%clk 0:00:18.2]}
59... h3 {[%clk 0:00:12.3]} 60. Kc1 {[%clk 0:00:19.1]} 60... Rg2 {[%clk
0:00:11.7]} 61. Kd1 {[%clk 0:00:18.7]} 61... h2 {[%clk 0:00:12.3]} 62. Bf2
{[%clk 0:00:17.7]} 62... h1=Q+ {[%clk 0:00:12.3]} 63. Be1 {[%clk 0:00:18.6]}
63... Qf1 {[%clk 0:00:12.1]} 64. Kc1 {[%clk 0:00:18.5]} 64... Qxe1# {[%clk
0:00:13]} 0-1

[Event "Early-Titled-Tuesday-Blitz-September-12-2023"]
[Site "Chess.com"]
[Date "2023.09.12"]
[Round "1"]
[White "Happy1712Drummer"]
[Black "grzechu96"]
[Result "0-1"]
[WhiteElo "2366"]
[BlackElo "2664"]
[TimeControl "180+1"]
[EndTime "8:08:14 PDT"]
[Termination "grzechu96 won by checkmate"]

1. e4 {[%clk 0:03:00.1]} 1... c5 {[%clk 0:02:50.3]} 2. g3 {[%clk 0:02:54.7]}
2... d5 {[%clk 0:02:47.8]} 3. exd5 {[%clk 0:02:54.4]} 3... Qxd5 {[%clk
0:02:47.1]} 4. Qf3 {[%clk 0:02:54.8]} 4... Qxf3 {[%clk 0:02:45.2]} 5. Nxf3
{[%clk 0:02:55.7]} 5... Nf6 {[%clk 0:02:39.6]} 6. d3 {[%clk 0:02:51.9]} 6... Nc6
{[%clk 0:02:33.3]} 7. Bg2 {[%clk 0:02:49.9]} 7... e6 {[%clk 0:02:14.6]} 8. Na3
{[%clk 0:02:15]} 8... Be7 {[%clk 0:02:00.9]} 9. h3 {[%clk 0:01:17.7]} 9... O-O
{[%clk 0:01:57.2]} 10. Be3 {[%clk 0:01:17.1]} 10... Nd5 {[%clk 0:01:55.8]} 11.
O-O-O {[%clk 0:01:11.2]} 11... Nxe3 {[%clk 0:01:51.2]} 12. fxe3 {[%clk
0:01:12.1]} 12... Bd7 {[%clk 0:01:48]} 13. Nc4 {[%clk 0:01:06.8]} 13... Bf6
{[%clk 0:01:33.6]} 14. g4 {[%clk 0:01:06.5]} 14... g6 {[%clk 0:01:33.3]} 15. Nd6
{[%clk 0:00:45.5]} 15... Be7 {[%clk 0:01:11.8]} 16. Ne4 {[%clk 0:00:38.5]} 16...
f5 {[%clk 0:00:58.3]} 17. gxf5 {[%clk 0:00:37.7]} 17... exf5 {[%clk 0:00:55.7]}
18. Nc3 {[%clk 0:00:37.5]} 18... Kg7 {[%clk 0:00:52.5]} 19. d4 {[%clk
0:00:22.7]} 19... cxd4 {[%clk 0:00:37.9]} 20. Nxd4 {[%clk 0:00:22.6]} 20... Bg5
{[%clk 0:00:27]} 21. Rhe1 {[%clk 0:00:17]} 21... Rad8 {[%clk 0:00:05.9]} 22.
Nxc6 {[%clk 0:00:11.3]} 22... Bxc6 {[%clk 0:00:06.1]} 23. Bxc6 {[%clk
0:00:11.3]} 23... bxc6 {[%clk 0:00:07]} 24. Rd3 {[%clk 0:00:07.3]} 24... Rxd3
{[%clk 0:00:04.6]} 25. cxd3 {[%clk 0:00:08.2]} 25... Re8 {[%clk 0:00:04.3]} 26.
Kd2 {[%clk 0:00:08.2]} 26... Kf6 {[%clk 0:00:03]} 27. Nd1 {[%clk 0:00:03.4]}
27... Bh6 {[%clk 0:00:03.2]} 28. Rf1 {[%clk 0:00:03]} 28... Ke6 {[%clk
0:00:03.7]} 29. Kc3 {[%clk 0:00:02.1]} 29... Kd6 {[%clk 0:00:04.2]} 30. Rf3
{[%clk 0:00:01.2]} 30... Re7 {[%clk 0:00:04.3]} 31. h4 {[%clk 0:00:01.9]} 31...
Bg7+ {[%clk 0:00:04.7]} 32. d4 {[%clk 0:00:02.4]} 32... Kd5 {[%clk 0:00:04]} 33.
Kd3 {[%clk 0:00:02.9]} 33... Rb7 {[%clk 0:00:03.9]} 34. Nc3+ {[%clk 0:00:02.7]}
34... Kd6 {[%clk 0:00:04.6]} 35. b3 {[%clk 0:00:03.3]} 35... Re7 {[%clk
0:00:05.1]} 36. Na4 {[%clk 0:00:03.8]} 36... Bh6 {[%clk 0:00:04.4]} 37. Nc5
{[%clk 0:00:03.9]} 37... Bg7 {[%clk 0:00:04]} 38. e4 {[%clk 0:00:04.3]} 38...
fxe4+ {[%clk 0:00:04]} 39. Nxe4+ {[%clk 0:00:05.2]} 39... Kd7 {[%clk 0:00:04.6]}
40. Ng5 {[%clk 0:00:05.6]} 40... Bh6 {[%clk 0:00:03.7]} 41. Nf7 {[%clk
0:00:04.9]} 41... Bc1 {[%clk 0:00:03.4]} 42. Ne5+ {[%clk 0:00:05.3]} 42... Kc7
{[%clk 0:00:03.9]} 43. Rf8 {[%clk 0:00:05.1]} 43... c5 {[%clk 0:00:04]} 44. Rf4
{[%clk 0:00:04.4]} 44... cxd4 {[%clk 0:00:04.1]} 45. Re4 {[%clk 0:00:04.4]}
45... Bb2 {[%clk 0:00:03.8]} 46. Nc4 {[%clk 0:00:04.5]} 46... Rxe4 {[%clk
0:00:04]} 47. Kxe4 {[%clk 0:00:05]} 47... Bc3 {[%clk 0:00:04.6]} 48. Kd3 {[%clk
0:00:05.3]} 48... Kd7 {[%clk 0:00:05.2]} 49. Ne5+ {[%clk 0:00:05.4]} 49... Ke6
{[%clk 0:00:05.6]} 50. Nf3 {[%clk 0:00:05.6]} 50... Kf5 {[%clk 0:00:05.5]} 51.
a3 {[%clk 0:00:04.8]} 51... Kg4 {[%clk 0:00:05.4]} 52. Ke4 {[%clk 0:00:04]}
52... d3 {[%clk 0:00:04.4]} 53. Kxd3 {[%clk 0:00:01.1]} 53... Kxf3 {[%clk
0:00:04.8]} 54. Kxc3 {[%clk 0:00:02]} 54... h6 {[%clk 0:00:05.4]} 55. b4 {[%clk
0:00:02.4]} 55... g5 {[%clk 0:00:05.9]} 56. hxg5 {[%clk 0:00:02.2]} 56... hxg5
{[%clk 0:00:06.8]} 57. a4 {[%clk 0:00:02.9]} 57... g4 {[%clk 0:00:07.5]} 58. b5
{[%clk 0:00:03.1]} 58... g3 {[%clk 0:00:08.1]} 59. Kb4 {[%clk 0:00:03.5]} 59...
g2 {[%clk 0:00:08.5]} 60. Ka5 {[%clk 0:00:04.2]} 60... g1=Q {[%clk 0:00:09.1]}
61. Ka6 {[%clk 0:00:04.8]} 61... Qb6# {[%clk 0:00:09.3]} 0-1